Workbook

Sheet Gegevens invoeren
A1: Gegevens invullen: | F1: Berekende waarden:
A2: Tankgegevens | B2: Du | C2: 45 | D2: m | F2: Warmtelek door | G2: bodem | H2: =(Berekeningen!C28*Berekeningen!J9)/1000 -> 63.19594494 | I2: kW | K2: Inschattting stoomkosten over de opslagperiode:
B3: Ti | C3: 50 | D3: C | G3: natte wand | H3: =(Berekeningen!D28*Berekeningen!J11)/1000 -> 32.43732437 | I3: kW | L3: =(H6*24*Berekeningen!N14*3.6/Berekeningen!I16)/0.85*C23 -> 40299.81652
B4: h | C4: 15 | D4: m | G4: droge wand | H4: =(Berekeningen!F28*Berekeningen!J12)/1000 -> 1.293624027 | I4: kW
B5: vulling | C5: 95 | D5: % | G5: dak | H5: =(Berekeningen!E28*Berekeningen!J10)/1000 -> 13.59948217 | I5: kW
A6: wand | B6: isolatiemateriaal | C6: steen- of glaswol | G6: totaal | H6: =SUM(H2:H5) -> 110.5263755 | I6: kW
B7: dikte isolatie | C7: 0.1 | D7: m
B8: kleur wand | C8: aluminium | G8: <--gebruik bij voorkeur de linkerknop
A9: dak | B9: isolatiemateriaal | C9: PIR | G9: de rechter is voor als de linker niet werkt.
B10: dikte isolatie | C10: 0.1 | D10: m | G10: Wel elke keer op OK klikken na elke sol-
B11: dikte afdekmateriaal | C11: 0 | D11: m | G11: verstap!
B12: kleur dak | C12: witte verf | F12: Resultaat:
B13: vorm dak | C13: conisch | F13: =IF(SUM(Berekeningen!D30:F30)<0.001,"Berekening succesvol uitgevoerd","Berekening mislukt, probeer nogmaals of probeer de tweede knop") -> Berekening succesvol uitgevoerd
A14: bodem (tot 1 m diep) | B14: zand | C14: 0.85 | D14: m
B15: klei | C15: 0.15 | D15: m
B16: beton | C16: 0 | D16: m
B17: foamglas | C17: 0 | D17: m
B18: zandbitumen | C18: 0 | D18: m
A19: opslagperiode | B19: van | C19: 2013-01-01
B20: tot en met | C20: 2013-12-31
A21: weersgegevens | B21: weerstation | C21: Rotterdam
A22: stoomgegevens | B22: druk | C22: 8 | D22: barg
B23: prijs | C23: 20 | D23: €/ton
A24: aannames | B24: dikte staal | C24: 0.01 | D24: m
B25: bodemtemperatuur | C25: 12.5 | D25: C
A28: Opgezochte waarden:
A29: u | B29: =Berekeningen!L7 -> 4.35893898 | C29: gemiddelde over 15 jaren
A30: Tu | B30: =Berekeningen!L6 -> 10.79315574 | C30: gemiddelde over 15 jaren
A31: k isolatie wand | B31: =VLOOKUP(C6,k_waarden,2,FALSE)+C31 -> 0.043 | C31: =IF(C6="PIR",(C3-10)/10*0.0007,IF(C6="PUR",(C3-10)/10*0.0007,(C3-10)/10*0.002)) -> 0.008 | D31: (correctie)
A32: k isolatie dak | B32: =VLOOKUP(C9,k_waarden,2,FALSE)+C32 -> 0.0258 | C32: =IF(C9="PIR",(C3-10)/10*0.0007,IF(C9="PUR",(C3-10)/10*0.0007,(C3-10)/10*0.002)) -> 0.0028 | D32: (correctie)
A33: emissiefactor wand | B33: =VLOOKUP(C8,emissiefactor,2,FALSE) -> 0.33
A34: emissiefactor dak | B34: =VLOOKUP(C12,emissiefactor,2,FALSE) -> 0.9

Sheet Berekeningen
A1: Berekeningen | H1: Andere hulpwaarden
C2: Bodem | D2: Natte wand | E2: Dak | F2: Droge wand | H2: datum | I2: =MONTH('Gegevens invoeren'!C19) -> 1 | J2: =DAY('Gegevens invoeren'!C19) -> 1 | K2: =IF(LEN(I2)=1,CONCATENATE(0,I2),I2) -> 01 | L2: =IF(LEN(J2)=1,CONCATENATE(0,J2),J2) -> 01 | M2: =CONCATENATE('Gegevens invoeren'!C21,K2,L2) -> Rotterdam0101 | N2: langer dan een jaar? | P2: =IF(DAYS360('Gegevens invoeren'!C19,'Gegevens invoeren'!C20)>360,"ja","nee") -> nee | Q2: =ROUNDDOWN(DAYS360('Gegevens invoeren'!C19,'Gegevens invoeren'!C20)/360,0) -> 1
A3: Afhankelijke waarden | B3: vouw in | E3: =HLOOKUP(ROUND(E13,-1),nweluchtinfo,5,FALSE) -> 1.8335e-05 | I3: =MONTH('Gegevens invoeren'!C20) -> 12 | J3: =DAY('Gegevens invoeren'!C20) -> 31 | K3: =IF(LEN(I3)=1,CONCATENATE(0,I3),I3) -> 12 | L3: =IF(LEN(J3)=1,CONCATENATE(0,J3),J3) -> 31 | M3: =CONCATENATE('Gegevens invoeren'!C21,K3,L3) -> Rotterdam1231 | N3: jaaroverschrijdend? | P3: =IF(YEAR('Gegevens invoeren'!C20)>YEAR('Gegevens invoeren'!C19),"ja","nee") -> nee
B4: vouw uit | D4: =HLOOKUP(ROUND(D25,-1),nweluchtinfo,5,FALSE) -> 1.4535e-05 | E4: =HLOOKUP(ROUND(E25,-1),nweluchtinfo,5,FALSE) -> 1.4535e-05 | F4: =HLOOKUP(ROUND(F25,-1),nweluchtinfo,5,FALSE) -> 1.4535e-05
B5: Pr in | E5: =HLOOKUP(ROUND(E13,-1),nweluchtinfo,4,FALSE) -> 0.7310051017 | L5: rekenwaarde | M5: <j | N5: <j jaaroverschrijdend | O5: >j | P5: jaargem
B6: Pr uit | D6: =HLOOKUP(ROUND(D25,-1),nweluchtinfo,4,FALSE) -> 0.743673131 | E6: =HLOOKUP(ROUND(E25,-1),nweluchtinfo,4,FALSE) -> 0.743673131 | F6: =HLOOKUP(ROUND(F25,-1),nweluchtinfo,4,FALSE) -> 0.743673131 | H6: weer | K6: gemiddelde temp | L6: =IF(P2="ja",O6,IF(P3="ja",N6,M6)) -> 10.79315574 | M6: =AVERAGEIFS(temperatuur,key,">="&M2,key,"<="&M3) -> 10.79315574 | N6: =N10/N12*AVERAGEIFS(temperatuur,key,">="&M2,key,"<="&'Gegevens invoeren'!C21&"1231")+N11/N12*AVERAGEIFS(temperatuur,key,">="&'Gegevens invoeren'!C21&"0101",key,"<="&M3) -> 7.201996354 | O6: =N10/N12*AVERAGEIFS(temperatuur,key,">="&M2,key,"<="&'Gegevens invoeren'!C21&"1231")+N11/N12*AVERAGEIFS(temperatuur,key,">="&'Gegevens invoeren'!C21&"0101",key,"<="&M3)+Q2*365/N12*P6 -> 10.79315574 | P6: =AVERAGEIFS(temperatuur,key,">="&'Gegevens invoeren'!C21&"0101",key,"<="&'Gegevens invoeren'!C21&"1231") -> 10.79315574
B7: k in | E7: =HLOOKUP(ROUND(E13,-1),nweluchtinfo,6,FALSE) -> 0.027921 | K7: gemiddelde wind | L7: =IF(P2="ja",O7,IF(P3="ja",N7,M7)) -> 4.35893898 | M7: =AVERAGEIFS(wind,key,">="&M2,key,"<="&M3) -> 4.35893898 | N7: =N10/N12*AVERAGEIFS(wind,key,">="&M2,key,"<="&'Gegevens invoeren'!C21&"1231")+N11/N12*AVERAGEIFS(wind,key,">="&'Gegevens invoeren'!C21&"0101",key,"<="&M3) -> 2.908608326 | O7: =N10/N12*AVERAGEIFS(wind,key,">="&M2,key,"<="&'Gegevens invoeren'!C21&"1231")+N11/N12*AVERAGEIFS(wind,key,">="&'Gegevens invoeren'!C21&"0101",key,"<="&M3)+Q2*365/N12*P7 -> 4.35893898 | P7: =AVERAGEIFS(wind,key,">="&'Gegevens invoeren'!C21&"0101",key,"<="&'Gegevens invoeren'!C21&"1231") -> 4.35893898
B8: k uit | D8: =HLOOKUP(ROUND(D25,-1),nweluchtinfo,6,FALSE) -> 0.024841 | E8: =HLOOKUP(ROUND(E25,-1),nweluchtinfo,6,FALSE) -> 0.024841 | F8: =HLOOKUP(ROUND(F25,-1),nweluchtinfo,6,FALSE) -> 0.024841
A9: Berekende waarden | B9: Lc | E9: =(1-'Gegevens invoeren'!C5/100)*'Gegevens invoeren'!C4 -> 0.75 | H9: oppervlakten | I9: bodem | J9: =0.25*PI()*'Gegevens invoeren'!C2^2 -> 1590.431281 | K9: m2 | M9: weegfactoren weer
B10: beta | E10: =1/(273+E13) -> 0.003127108343 | I10: dak | J10: =VLOOKUP('Gegevens invoeren'!C13,dak,2,FALSE)*J9 -> 1646.096376 | K10: m2 | M10: deel 1 | N10: =COUNTIFS(key,">="&M2,key,"<="&'Gegevens invoeren'!C21&"1231") -> 366
B11: Rtotaal | C11: ='Gegevens invoeren'!C14/VLOOKUP('Gegevens invoeren'!B14,k_waarden,2,FALSE)+'Gegevens invoeren'!C15/VLOOKUP('Gegevens invoeren'!B15,k_waarden,2,FALSE)+'Gegevens invoeren'!C16/VLOOKUP('Gegevens invoeren'!B16,k_waarden,2,FALSE)+'Gegevens invoeren'!C17/VLOOKUP('Gegevens invoeren'!B17,k_waarden,2,FALSE)+'Gegevens invoeren'!C18/VLOOKUP('Gegevens invoeren'!B18,k_waarden,2,FALSE) -> 0.94375 | D11: ='Gegevens invoeren'!C7/'Gegevens invoeren'!B31+'Gegevens invoeren'!C24/Database!I13 -> 2.325781395 | E11: ='Gegevens invoeren'!C24/Database!I13+'Gegevens invoeren'!C10/'Gegevens invoeren'!B32 -> 3.876168992 | F11: ='Gegevens invoeren'!C7/'Gegevens invoeren'!B31+'Gegevens invoeren'!C24/Database!I13 -> 2.325781395 | I11: natte wand | J11: =PI()*'Gegevens invoeren'!C2*'Gegevens invoeren'!C4*'Gegevens invoeren'!C5/100 -> 2014.546289 | K11: m2 | M11: deel 2 | N11: =COUNTIFS(key,">="&'Gegevens invoeren'!C21&"0101",key,"<="&M3) -> 366
B12: Rcyl | I12: droge wand | J12: =PI()*'Gegevens invoeren'!C2*'Gegevens invoeren'!C4*(1-'Gegevens invoeren'!C5/100) -> 106.0287521 | K12: m2 | M12: totaal aant dagen | N12: =SUM(N10:N11)+Q2*365 -> 1097
A13: Vrije convectie | B13: Td | E13: =AVERAGE('Gegevens invoeren'!C3,E21) -> 46.78425126
B14: Ra | E14: =E5*9.81*E10*('Gegevens invoeren'!C3-E21)*E9^3/E3^2 -> 180994929.6 | H14: starttemperatuur | I14: =(D21-'Gegevens invoeren'!B30)/2 -> 19.60342213 | M14: echt aantal dagen | N14: ='Gegevens invoeren'!C20-'Gegevens invoeren'!C19 -> 364
B15: Nu | E15: =0.061*E14^(1/3) -> 34.50526003
B16: h in | E16: =E15*E7/E9 -> 1.28456182 | F16: =E16 -> 1.28456182 | H16: stoomgegevens | I16: =VLOOKUP(('Gegevens invoeren'!C22+1),stoomgegevens,4,TRUE) -> 2029.5 | J16: kJ/kg | K16: verdampingswarmte
A17: Gedwongen convectie | B17: Re | D17: ='Gegevens invoeren'!B29*'Gegevens invoeren'!C2/D4 -> 13495167.12 | E17: ='Gegevens invoeren'!B29*E20/E4 -> 10599079.47 | F17: ='Gegevens invoeren'!B29*'Gegevens invoeren'!C2/F4 -> 13495167.12
B18: Nu | D18: =0.3+0.62*D17^0.5*D6^(1/3)/(1+(0.4/D6)^(2/3))^0.25*(1+(D17/282000)^(5/8))^(4/5) -> 13462.63968 | E18: =(0.037*E17^0.8-871)*E6^(1/3) -> 13192.04841 | F18: =0.3+0.62*F17^0.5*F6^(1/3)/(1+(0.4/F6)^(2/3))^0.25*(1+(F17/282000)^(5/8))^(4/5) -> 13462.63968
B19: h uit | D19: =D18*D8/'Gegevens invoeren'!C2 -> 7.431676275 | E19: =E18*E8/E20 -> 9.272117277 | F19: =F18*F8/'Gegevens invoeren'!C2 -> 7.431676275
B20: Lgem=opp/D | E20: =0.25*PI()*'Gegevens invoeren'!C2 -> 35.34291735
B21: T1 | D21: ='Gegevens invoeren'!C3 -> 50 | E21: 43.56850252 | F21: 40.50206018
B22: T2 | D22: =D21-D29*'Gegevens invoeren'!C24/Database!I13 -> 49.99677967 | E22: =E21-E29*'Gegevens invoeren'!C24/50 -> 43.56685019
B23: T3 | D23: =D21-D28*D11 -> 12.55130699 | E23: =E21-E27*E11 -> 11.5449273 | F23: =F21-F27*F11 -> 12.12592034
B24: T4 | D24: 12.55130699 | E24: =E23-E27*'Gegevens invoeren'!C11/237 -> 11.5449273
B25: Tf | D25: =(D24+'Gegevens invoeren'!B30)/2 -> 11.67223137 | E25: =(E24+'Gegevens invoeren'!B30)/2 -> 11.16904152 | F25: =(F23+'Gegevens invoeren'!B30)/2 -> 11.45953804
B26: geldig? | D26: =IF(D17*D6>0.2,1,0) -> 1 | E26: =IF(E17>500000,IF(E14>320000,1,0),0) -> 1 | F26: =E26*D26 -> 1
A27: W/m2 | B27: q in | E27: =E16*('Gegevens invoeren'!C3-E21) -> 8.261656105 | F27: =F16*('Gegevens invoeren'!C3-F21) -> 12.20069087
A28: W/m2 | B28: q wand | C28: =1/C11*('Gegevens invoeren'!C3-'Gegevens invoeren'!C25) -> 39.73509934 | D28: =1/D11*('Gegevens invoeren'!C3-D24) -> 16.10155326 | E28: =1/E11*(E21-E23) -> 8.261656105 | F28: =1/F11*(F21-F23) -> 12.20069087
A29: W/m2 | B29: q uit | D29: =D19*(D24-'Gegevens invoeren'!B30)+0.0000000567*'Gegevens invoeren'!B33*((273+D24)^4-(273+'Gegevens invoeren'!B30)^4) -> 16.10166788 | E29: =E19*(E23-'Gegevens invoeren'!B30)+0.0000000567*'Gegevens invoeren'!B33*((273+E23)^4-(273+'Gegevens invoeren'!B30)^4) -> 8.261655907 | F29: =F19*(F23-'Gegevens invoeren'!B30)+0.0000000567*'Gegevens invoeren'!B33*((273+F23)^4-(273+'Gegevens invoeren'!B30)^4) -> 12.20068797
D30: =D28-D29 -> -0.0001146164416 | E30: =E28-E29 -> 1.986401443e-07 | F30: =F28-F29 -> 2.899715442e-06

Sheet Database
A1: Tankgegevens | F1: Weersstation | H1: thermofysische eigenschappen
A2: isolatie | B2: kleur | C2: dak | D2: factor | I2: k | K2: emissiefactor
A3: steen- of glaswol | B3: wit | C3: dome | D3: 1.072 | F3: De Bilt | H3: steen- of glaswol | I3: =0.035 -> 0.035 | K3: witte verf | L3: 0.9
A4: PIR | B4: aluminium | C4: conisch | D4: 1.035 | F4: De Kooy | H4: PUR | I4: 0.03 | K4: aluminium verf | L4: 0.45
A5: PUR | B5: zwart | C5: plat | D5: 1 | F5: Deelen | H5: PIR | I5: 0.023 | K5: aluminium | L5: 0.33
A6: isolerende verf | B6: roestbruin | F6: Eindhoven | H6: RVS | I6: 16 | K6: staal verroest | L6: 0.81
F7: Lauwersoog | H7: alu | I7: 237 | K7: staal | L7: 0.32
F8: Leeuwarden | H8: zand | I8: 1 | K8: zwarte verf | L8: 0.98
F9: Maastricht | H9: beton | I9: 1.9 | K9: isolerende verf | L9: 0.85
F10: Rotterdam | H10: zandbitumen | I10: 0.6 | K10: RVS | L10: 0.75
F11: Twenthe | H11: klei | I11: 1.6
F12: Vlissingen | H12: foamglas | I12: 0.045
H13: staal | I13: 50
H14: aluminium | I14: 237
A15: Luchtgegevens | H15: isolerende verf | I15: 0.05
B17: -10 | C17: 0 | D17: 10 | E17: 20 | F17: 30 | G17: 40 | H17: 50 | I17: 60 | J17: 70 | K17: 80 | L17: 90 | M17: 100 | N17: 110 | O17: 120 | P17: 130 | Q17: 140 | R17: 150 | S17: 160 | T17: 170 | U17: 180 | V17: 190 | W17: 200 | X17: 210 | Y17: 220
B18: =B17+273 -> 263 | C18: 273 | D18: 283 | E18: 293 | F18: 303 | G18: 313 | H18: 323 | I18: 333 | J18: 343 | K18: 353 | L18: 363 | M18: 373 | N18: 383 | O18: 393 | P18: 403 | Q18: 413 | R18: 423 | S18: 433 | T18: 443 | U18: 453 | V18: 463 | W18: 473 | X18: 483 | Y18: 493
A19: rho | B19: =-(1.39-0.995)/100*B18+2.38 -> 1.34115 | C19: 1.30165 | D19: 1.26215 | E19: 1.22265 | F19: 1.18315 | G19: 1.14365 | H19: 1.10415 | I19: 1.06465 | J19: 1.02515 | K19: 0.98565 | L19: 0.94615 | M19: 0.90665 | N19: 0.86715 | O19: 0.82765 | P19: 0.78815 | Q19: 0.74865 | R19: 0.70915 | S19: 0.66965 | T19: 0.63015 | U19: =-(1.39-0.995)/100*U18+2.38 -> 0.59065 | V19: =-(1.39-0.995)/100*V18+2.38 -> 0.55115 | W19: =-(1.39-0.995)/100*W18+2.38 -> 0.51165 | X19: =-(1.39-0.995)/100*X18+2.38 -> 0.47215 | Y19: =-(1.39-0.995)/100*Y18+2.38 -> 0.43265
A20: Pr | B20: =B21*B19*B24/B22 -> 0.7318875391 | C20: =C21*C19*C24/C22 -> 0.7395294734 | D20: 0.743673131 | E20: 0.7446314041 | F20: 0.742680654 | G20: 0.738065892 | H20: 0.7310051017 | I20: =I21*I19*I24/I22 -> 0.7216928661 | J20: =J21*J19*J24/J22 -> 0.7103034256 | K20: =K21*K19*K24/K22 -> 0.6969932684 | L20: 0.6819033355 | M20: 0.6651609045 | N20: 0.6468812063 | O20: 0.627168817 | P20: 0.6061188624 | Q20: 0.5838180608 | R20: 0.5603456329 | S20: 0.5357740941 | T20: 0.5101699496 | U20: 0.4835943044 | V20: 0.4561034007 | W20: 0.4277490915 | X20: 0.3985792616 | Y20: 0.3686381993
A21: vouw | B21: =(0.0000209-0.0000114)/100*B18-0.00001235 -> 1.2635e-05 | C21: 1.3585e-05 | D21: 1.4535e-05 | E21: 1.5485e-05 | F21: 1.6435e-05 | G21: 1.7385e-05 | H21: 1.8335e-05 | I21: 1.9285e-05 | J21: 2.0235e-05 | K21: 2.1185e-05 | L21: 2.2135e-05 | M21: 2.3085e-05 | N21: 2.4035e-05 | O21: 2.4985e-05 | P21: 2.5935e-05 | Q21: 2.6885e-05 | R21: 2.7835e-05 | S21: 2.8785e-05 | T21: 2.9735e-05 | U21: =(0.0000209-0.0000114)/100*U18-0.00001235 -> 3.0685e-05 | V21: =(0.0000209-0.0000114)/100*V18-0.00001235 -> 3.1635e-05 | W21: =(0.0000209-0.0000114)/100*W18-0.00001235 -> 3.2585e-05 | X21: =(0.0000209-0.0000114)/100*X18-0.00001235 -> 3.3535e-05 | Y21: =(0.0000209-0.0000114)/100*Y18-0.00001235 -> 3.4485e-05
A22: k | B22: =(0.03-0.0223)/100*B18+0.00305 -> 0.023301 | C22: 0.024071 | D22: 0.024841 | E22: 0.025611 | F22: 0.026381 | G22: 0.027151 | H22: 0.027921 | I22: 0.028691 | J22: 0.029461 | K22: 0.030231 | L22: 0.031001 | M22: 0.031771 | N22: 0.032541 | O22: 0.033311 | P22: 0.034081 | Q22: 0.034851 | R22: 0.035621 | S22: 0.036391 | T22: 0.037161 | U22: =(0.03-0.0223)/100*U18+0.00305 -> 0.037931 | V22: =(0.03-0.0223)/100*V18+0.00305 -> 0.038701 | W22: =(0.03-0.0223)/100*W18+0.00305 -> 0.039471 | X22: =(0.03-0.0223)/100*X18+0.00305 -> 0.040241 | Y22: =(0.03-0.0223)/100*Y18+0.00305 -> 0.041011
A23: Cp | B23: =(1.009-1.006)/100*B18+0.9985 -> 1.00639 | C23: =(1.009-1.006)/100*C18+0.9985 -> 1.00669 | D23: 1.00699 | E23: 1.00729 | F23: 1.00759 | G23: 1.00789 | H23: 1.00819 | I23: =(1.009-1.006)/100*I18+0.9985 -> 1.00849 | J23: =(1.009-1.006)/100*J18+0.9985 -> 1.00879 | K23: =(1.009-1.006)/100*K18+0.9985 -> 1.00909 | L23: =(1.009-1.006)/100*L18+0.9985 -> 1.00939 | M23: =(1.009-1.006)/100*M18+0.9985 -> 1.00969 | N23: 1.00999 | O23: 1.01029 | P23: 1.01059 | Q23: 1.01089 | R23: 1.01119 | S23: 1.01149 | T23: 1.01179 | U23: =(1.009-1.006)/100*U18+0.9985 -> 1.01209 | V23: =(1.009-1.006)/100*V18+0.9985 -> 1.01239 | W23: =(1.009-1.006)/100*W18+0.9985 -> 1.01269 | X23: =(1.009-1.006)/100*X18+0.9985 -> 1.01299 | Y23: =(1.009-1.006)/100*Y18+0.9985 -> 1.01329
A24: Cp in J/kgK | B24: =B23*1000 -> 1006.39 | C24: 1006.69 | D24: 1006.99 | E24: 1007.29 | F24: 1007.59 | G24: 1007.89 | H24: 1008.19 | I24: 1008.49 | J24: 1008.79 | K24: 1009.09 | L24: 1009.39 | M24: 1009.69 | N24: 1009.99 | O24: 1010.29 | P24: 1010.59 | Q24: 1010.89 | R24: 1011.19 | S24: 1011.49 | T24: 1011.79 | U24: 1012.09 | V24: 1012.39 | W24: 1012.69 | X24: 1012.99 | Y24: 1013.29
A27: Stoomgegevens
B28: Temperatuur
A29: Absolute | B29: verzadigde | C29: Vloeistof | D29: Verdampings | E29: Totale | F29: Soortelijk
A30: druk | B30: stoom | C30: warmte | D30: warmte | E30: warmte | F30: volume
A31: Bar | B31: °C | C31: kJ/kg | D31: kJ/kg | E31: kJ/kg | F31: m3/kg
A32: 6.6 | B32: 162.6 | C32: 686.78 | D32: 2072.7 | E32: 2759.5 | F32: 0.288
A33: 6.8 | B33: 163.79 | C33: 691.98 | D33: 2068.8 | E33: 2.760.8 | F33: 0.28
A34: 7 | B34: 164.96 | C34: 697.06 | D34: 2064.9 | E34: 2762 | F34: 0.273
A35: 7.2 | B35: 166.1 | C35: 702.03 | D35: 2061.1 | E35: 2763.2 | F35: 0.266
A36: 7.4 | B36: 167.21 | C36: 706.9 | D36: 2057.4 | E36: 2764.3 | F36: 0.259
A37: 7.6 | B37: 168.3 | C37: 711.68 | D37: 2053.7 | E37: 2765.4 | F37: 0.252
A38: 7.8 | B38: 169.37 | C38: 716.35 | D38: 2050.1 | E38: 2766.4 | F38: 0.246
A39: 8 | B39: 170.41 | C39: 720.94 | D39: 2046.5 | E39: 2767.5 | F39: 0.24
A40: 8.2 | B40: 171.44 | C40: 725.43 | D40: 2043 | E40: 2768.5 | F40: 0.235
A41: 8.4 | B41: 172.45 | C41: 729.85 | D41: 2039.6 | E41: 2769.4 | F41: 0.229
A42: 8.6 | B42: 173.44 | C42: 734.19 | D42: 2036.2 | E42: 2770.4 | F42: 0.224
A43: 8.8 | B43: 174.41 | C43: 738.45 | D43: 2032.8 | E43: 2771.3 | F43: 0.22
A44: 9 | B44: 175.36 | C44: 742.64 | D44: 2029.5 | E44: 2772.1 | F44: 0.215
A45: 9.2 | B45: 176.29 | C45: 746.76 | D45: 2026.2 | E45: 2773 | F45: 0.21
A46: 9.4 | B46: 177.21 | C46: 750.82 | D46: 2023 | E46: 2773.8 | F46: 0.206
A47: 9.6 | B47: 178.12 | C47: 754.81 | D47: 2019.8 | E47: 2774.6 | F47: 0.202
A48: 9.8 | B48: 179.01 | C48: 758.74 | D48: 2016.7 | E48: 2775.4 | F48: 0.198
A49: 10 | B49: 179.88 | C49: 762.61 | D49: 2013.6 | E49: 2776.2 | F49: 0.194
A50: 10.5 | B50: 182.02 | C50: 772.03 | D50: 2005.9 | E50: 2778 | F50: 0.186
A51: 11 | B51: 184.07 | C51: 781.13 | D51: 1998.5 | E51: 2779.7 | F51: 0.177
A52: 11.5 | B52: 186.05 | C52: 789.92 | D52: 1991.3 | E52: 2781.3 | F52: 0.17
A53: 12 | B53: 187.96 | C53: 798.43 | D53: 1984.3 | E53: 2782.7 | F53: 0.163
A54: 12.5 | B54: 189.81 | C54: 806.69 | D54: 1977.4 | E54: 2784.1 | F54: 0.157
A55: 13 | B55: 191.61 | C55: 814.7 | D55: 1970.7 | E55: 2785.4 | F55: 0.151
A56: 13.5 | B56: 193.35 | C56: 822.49 | D56: 1964.2 | E56: 2786.6 | F56: 0.146
A57: 14 | B57: 195.04 | C57: 830.08 | D57: 1957.7 | E57: 2787.8 | F57: 0.141

Sheet Weersgegevens
A1: # BRON: KONINKLIJK NEDERLANDS METEOROLOGISCH INSTITUUT (KNMI) | G1: Gemiddelde van 2000 t/m 2014. Voor meer weergegevens zie: http://www.knmi.nl/klimatologie/daggegevens/selectie.cgi
A2: key | B2: Station | C2: maand | D2: dag | E2: wind | F2: temperatuur
A3: De Bilt0101 | B3: De Bilt | C3: 01 | D3: 01 | E3: 4.013333333 | F3: 4.133333333
A4: De Bilt0102 | B4: De Bilt | C4: 01 | D4: 02 | E4: 3.746666667 | F4: 3.833333333
A5: De Bilt0103 | B5: De Bilt | C5: 01 | D5: 03 | E5: 4.3 | F5: 3.233333333
A6: De Bilt0104 | B6: De Bilt | C6: 01 | D6: 04 | E6: 4.646666667 | F6: 3.853333333
A7: De Bilt0105 | B7: De Bilt | C7: 01 | D7: 05 | E7: 4.28 | F7: 3.58
A8: De Bilt0106 | B8: De Bilt | C8: 01 | D8: 06 | E8: 3.74 | F8: 4.246666667
A9: De Bilt0107 | B9: De Bilt | C9: 01 | D9: 07 | E9: 4.12 | F9: 4.52
A10: De Bilt0108 | B10: De Bilt | C10: 01 | D10: 08 | E10: 4.426666667 | F10: 3.966666667
A11: De Bilt0109 | B11: De Bilt | C11: 01 | D11: 09 | E11: 4 | F11: 3.133333333
A12: De Bilt0110 | B12: De Bilt | C12: 01 | D12: 10 | E12: 3.813333333 | F12: 3.153333333
A13: De Bilt0111 | B13: De Bilt | C13: 01 | D13: 11 | E13: 4.3 | F13: 3.886666667
A14: De Bilt0112 | B14: De Bilt | C14: 01 | D14: 12 | E14: 4.2 | F14: 3.56
A15: De Bilt0113 | B15: De Bilt | C15: 01 | D15: 13 | E15: 4.406666667 | F15: 4.073333333
A16: De Bilt0114 | B16: De Bilt | C16: 01 | D16: 14 | E16: 3.533333333 | F16: 3.54
A17: De Bilt0115 | B17: De Bilt | C17: 01 | D17: 15 | E17: 4.073333333 | F17: 2.98
A18: De Bilt0116 | B18: De Bilt | C18: 01 | D18: 16 | E18: 3.913333333 | F18: 3.113333333
A19: De Bilt0117 | B19: De Bilt | C19: 01 | D19: 17 | E19: 4.106666667 | F19: 4.073333333
A20: De Bilt0118 | B20: De Bilt | C20: 01 | D20: 18 | E20: 4.373333333 | F20: 4.3
A21: De Bilt0119 | B21: De Bilt | C21: 01 | D21: 19 | E21: 4.22 | F21: 4.933333333
A22: De Bilt0120 | B22: De Bilt | C22: 01 | D22: 20 | E22: 4.84 | F22: 5.1
A23: De Bilt0121 | B23: De Bilt | C23: 01 | D23: 21 | E23: 4.186666667 | F23: 4.626666667
A24: De Bilt0122 | B24: De Bilt | C24: 01 | D24: 22 | E24: 3.986666667 | F24: 3.46
A25: De Bilt0123 | B25: De Bilt | C25: 01 | D25: 23 | E25: 3.726666667 | F25: 2.726666667
A26: De Bilt0124 | B26: De Bilt | C26: 01 | D26: 24 | E26: 3.173333333 | F26: 2.593333333
A27: De Bilt0125 | B27: De Bilt | C27: 01 | D27: 25 | E27: 3.66 | F27: 1.96
A28: De Bilt0126 | B28: De Bilt | C28: 01 | D28: 26 | E28: 4.246666667 | F28: 2.466666667
A29: De Bilt0127 | B29: De Bilt | C29: 01 | D29: 27 | E29: 3.786666667 | F29: 3.226666667
A30: De Bilt0128 | B30: De Bilt | C30: 01 | D30: 28 | E30: 4.393333333 | F30: 3.52
A31: De Bilt0129 | B31: De Bilt | C31: 01 | D31: 29 | E31: 4.193333333 | F31: 3.353333333
A32: De Bilt0130 | B32: De Bilt | C32: 01 | D32: 30 | E32: 3.693333333 | F32: 3.506666667
A33: De Bilt0131 | B33: De Bilt | C33: 01 | D33: 31 | E33: 4.766666667 | F33: 3.28
A34: De Bilt0201 | B34: De Bilt | C34: 02 | D34: 01 | E34: 4.646666667 | F34: 3.206666667
A35: De Bilt0202 | B35: De Bilt | C35: 02 | D35: 02 | E35: 4.48 | F35: 3.826666667
A36: De Bilt0203 | B36: De Bilt | C36: 02 | D36: 03 | E36: 3.74 | F36: 4.04
A37: De Bilt0204 | B37: De Bilt | C37: 02 | D37: 04 | E37: 4.393333333 | F37: 4.78
A38: De Bilt0205 | B38: De Bilt | C38: 02 | D38: 05 | E38: 4.866666667 | F38: 5.353333333
A39: De Bilt0206 | B39: De Bilt | C39: 02 | D39: 06 | E39: 4.173333333 | F39: 4.733333333
A40: De Bilt0207 | B40: De Bilt | C40: 02 | D40: 07 | E40: 4.24 | F40: 4.073333333
A41: De Bilt0208 | B41: De Bilt | C41: 02 | D41: 08 | E41: 4.326666667 | F41: 3.806666667
A42: De Bilt0209 | B42: De Bilt | C42: 02 | D42: 09 | E42: 4.146666667 | F42: 3.226666667
A43: De Bilt0210 | B43: De Bilt | C43: 02 | D43: 10 | E43: 4.12 | F43: 3.2
A44: De Bilt0211 | B44: De Bilt | C44: 02 | D44: 11 | E44: 4.013333333 | F44: 3.813333333
A45: De Bilt0212 | B45: De Bilt | C45: 02 | D45: 12 | E45: 4.073333333 | F45: 3.753333333
A46: De Bilt0213 | B46: De Bilt | C46: 02 | D46: 13 | E46: 3.313333333 | F46: 3.48
A47: De Bilt0214 | B47: De Bilt | C47: 02 | D47: 14 | E47: 3.466666667 | F47: 3.08
A48: De Bilt0215 | B48: De Bilt | C48: 02 | D48: 15 | E48: 3.826666667 | F48: 3.913333333
A49: De Bilt0216 | B49: De Bilt | C49: 02 | D49: 16 | E49: 3.513333333 | F49: 3.413333333
A50: De Bilt0217 | B50: De Bilt | C50: 02 | D50: 17 | E50: 2.966666667 | F50: 3.053333333
A51: De Bilt0218 | B51: De Bilt | C51: 02 | D51: 18 | E51: 3.06 | F51: 3.246666667
A52: De Bilt0219 | B52: De Bilt | C52: 02 | D52: 19 | E52: 3.813333333 | F52: 3.493333333
A53: De Bilt0220 | B53: De Bilt | C53: 02 | D53: 20 | E53: 3.86 | F53: 3.2
A54: De Bilt0221 | B54: De Bilt | C54: 02 | D54: 21 | E54: 3.933333333 | F54: 3.28
A55: De Bilt0222 | B55: De Bilt | C55: 02 | D55: 22 | E55: 4.58 | F55: 3.94
A56: De Bilt0223 | B56: De Bilt | C56: 02 | D56: 23 | E56: 3.953333333 | F56: 3.953333333
A57: De Bilt0224 | B57: De Bilt | C57: 02 | D57: 24 | E57: 3.813333333 | F57: 4.58
A58: De Bilt0225 | B58: De Bilt | C58: 02 | D58: 25 | E58: 3.72 | F58: 4.566666667
A59: De Bilt0226 | B59: De Bilt | C59: 02 | D59: 26 | E59: 4.266666667 | F59: 5.233333333
A60: De Bilt0227 | B60: De Bilt | C60: 02 | D60: 27 | E60: 4.266666667 | F60: 4.546666667
A61: De Bilt0228 | B61: De Bilt | C61: 02 | D61: 28 | E61: 3.66 | F61: 4.913333333
A62: De Bilt0229 | B62: De Bilt | C62: 02 | D62: 29 | E62: 4.325 | F62: 5.55
A63: De Bilt0301 | B63: De Bilt | C63: 03 | D63: 01 | E63: 3.913333333 | F63: 4.68
A64: De Bilt0302 | B64: De Bilt | C64: 03 | D64: 02 | E64: 3.573333333 | F64: 4.18
A65: De Bilt0303 | B65: De Bilt | C65: 03 | D65: 03 | E65: 3.406666667 | F65: 3.5
A66: De Bilt0304 | B66: De Bilt | C66: 03 | D66: 04 | E66: 3.526666667 | F66: 3.56
A67: De Bilt0305 | B67: De Bilt | C67: 03 | D67: 05 | E67: 3.32 | F67: 4.546666667
A68: De Bilt0306 | B68: De Bilt | C68: 03 | D68: 06 | E68: 4.073333333 | F68: 4.973333333
A69: De Bilt0307 | B69: De Bilt | C69: 03 | D69: 07 | E69: 3.9 | F69: 5.62
A70: De Bilt0308 | B70: De Bilt | C70: 03 | D70: 08 | E70: 4.2 | F70: 6.54
A71: De Bilt0309 | B71: De Bilt | C71: 03 | D71: 09 | E71: 4.4 | F71: 6.806666667
A72: De Bilt0310 | B72: De Bilt | C72: 03 | D72: 10 | E72: 4.333333333 | F72: 5.973333333
A73: De Bilt0311 | B73: De Bilt | C73: 03 | D73: 11 | E73: 4.413333333 | F73: 6.206666667
A74: De Bilt0312 | B74: De Bilt | C74: 03 | D74: 12 | E74: 3.586666667 | F74: 5.88
A75: De Bilt0313 | B75: De Bilt | C75: 03 | D75: 13 | E75: 3.193333333 | F75: 5.793333333
A76: De Bilt0314 | B76: De Bilt | C76: 03 | D76: 14 | E76: 3.426666667 | F76: 5.793333333
A77: De Bilt0315 | B77: De Bilt | C77: 03 | D77: 15 | E77: 4.08 | F77: 6.726666667
A78: De Bilt0316 | B78: De Bilt | C78: 03 | D78: 16 | E78: 3.76 | F78: 7.98
A79: De Bilt0317 | B79: De Bilt | C79: 03 | D79: 17 | E79: 3.853333333 | F79: 7.346666667
A80: De Bilt0318 | B80: De Bilt | C80: 03 | D80: 18 | E80: 3.74 | F80: 6.68
A81: De Bilt0319 | B81: De Bilt | C81: 03 | D81: 19 | E81: 3.58 | F81: 6.146666667
A82: De Bilt0320 | B82: De Bilt | C82: 03 | D82: 20 | E82: 3.7 | F82: 6.486666667
A83: De Bilt0321 | B83: De Bilt | C83: 03 | D83: 21 | E83: 3.446666667 | F83: 6.006666667
A84: De Bilt0322 | B84: De Bilt | C84: 03 | D84: 22 | E84: 3.686666667 | F84: 6.24
A85: De Bilt0323 | B85: De Bilt | C85: 03 | D85: 23 | E85: 3.526666667 | F85: 6.366666667
A86: De Bilt0324 | B86: De Bilt | C86: 03 | D86: 24 | E86: 3.493333333 | F86: 6.933333333
A87: De Bilt0325 | B87: De Bilt | C87: 03 | D87: 25 | E87: 3.613333333 | F87: 7.093333333
A88: De Bilt0326 | B88: De Bilt | C88: 03 | D88: 26 | E88: 3.313333333 | F88: 6.98
A89: De Bilt0327 | B89: De Bilt | C89: 03 | D89: 27 | E89: 3.653333333 | F89: 7.266666667
A90: De Bilt0328 | B90: De Bilt | C90: 03 | D90: 28 | E90: 3.766666667 | F90: 7.72
A91: De Bilt0329 | B91: De Bilt | C91: 03 | D91: 29 | E91: 3.093333333 | F91: 7.833333333
A92: De Bilt0330 | B92: De Bilt | C92: 03 | D92: 30 | E92: 3.44 | F92: 8.546666667
A93: De Bilt0331 | B93: De Bilt | C93: 03 | D93: 31 | E93: 3.826666667 | F93: 8.92
A94: De Bilt0401 | B94: De Bilt | C94: 04 | D94: 01 | E94: 3.8 | F94: 9.226666667
A95: De Bilt0402 | B95: De Bilt | C95: 04 | D95: 02 | E95: 4.04 | F95: 10.53333333
A96: De Bilt0403 | B96: De Bilt | C96: 04 | D96: 03 | E96: 3.793333333 | F96: 10.08
A97: De Bilt0404 | B97: De Bilt | C97: 04 | D97: 04 | E97: 3.886666667 | F97: 8.706666667
A98: De Bilt0405 | B98: De Bilt | C98: 04 | D98: 05 | E98: 4.16 | F98: 7.666666667
A99: De Bilt0406 | B99: De Bilt | C99: 04 | D99: 06 | E99: 3.813333333 | F99: 8.28
A100: De Bilt0407 | B100: De Bilt | C100: 04 | D100: 07 | E100: 3.34 | F100: 8.033333333
A101: De Bilt0408 | B101: De Bilt | C101: 04 | D101: 08 | E101: 3.373333333 | F101: 7.093333333
A102: De Bilt0409 | B102: De Bilt | C102: 04 | D102: 09 | E102: 3.253333333 | F102: 7.72
A103: De Bilt0410 | B103: De Bilt | C103: 04 | D103: 10 | E103: 3.24 | F103: 8.513333333
A104: De Bilt0411 | B104: De Bilt | C104: 04 | D104: 11 | E104: 3.106666667 | F104: 8.706666667
A105: De Bilt0412 | B105: De Bilt | C105: 04 | D105: 12 | E105: 3.46 | F105: 8.62
A106: De Bilt0413 | B106: De Bilt | C106: 04 | D106: 13 | E106: 3.5 | F106: 9.2
A107: De Bilt0414 | B107: De Bilt | C107: 04 | D107: 14 | E107: 3.18 | F107: 9.833333333
A108: De Bilt0415 | B108: De Bilt | C108: 04 | D108: 15 | E108: 3.366666667 | F108: 10.52666667
A109: De Bilt0416 | B109: De Bilt | C109: 04 | D109: 16 | E109: 3.06 | F109: 10.14666667
A110: De Bilt0417 | B110: De Bilt | C110: 04 | D110: 17 | E110: 3.413333333 | F110: 10.53333333
A111: De Bilt0418 | B111: De Bilt | C111: 04 | D111: 18 | E111: 4.326666667 | F111: 9.84
A112: De Bilt0419 | B112: De Bilt | C112: 04 | D112: 19 | E112: 3.566666667 | F112: 9.373333333
A113: De Bilt0420 | B113: De Bilt | C113: 04 | D113: 20 | E113: 3.206666667 | F113: 10.11333333
A114: De Bilt0421 | B114: De Bilt | C114: 04 | D114: 21 | E114: 2.906666667 | F114: 10.79333333
A115: De Bilt0422 | B115: De Bilt | C115: 04 | D115: 22 | E115: 2.686666667 | F115: 10.94666667
A116: De Bilt0423 | B116: De Bilt | C116: 04 | D116: 23 | E116: 2.56 | F116: 11.51333333
A117: De Bilt0424 | B117: De Bilt | C117: 04 | D117: 24 | E117: 2.593333333 | F117: 12.92
A118: De Bilt0425 | B118: De Bilt | C118: 04 | D118: 25 | E118: 3.12 | F118: 13.85333333
A119: De Bilt0426 | B119: De Bilt | C119: 04 | D119: 26 | E119: 3.273333333 | F119: 12.56666667
A120: De Bilt0427 | B120: De Bilt | C120: 04 | D120: 27 | E120: 3.613333333 | F120: 12.61333333
A121: De Bilt0428 | B121: De Bilt | C121: 04 | D121: 28 | E121: 3.406666667 | F121: 12.52666667
A122: De Bilt0429 | B122: De Bilt | C122: 04 | D122: 29 | E122: 3.56 | F122: 12.58
A123: De Bilt0430 | B123: De Bilt | C123: 04 | D123: 30 | E123: 3.593333333 | F123: 12.69333333
A124: De Bilt0501 | B124: De Bilt | C124: 05 | D124: 01 | E124: 3.893333333 | F124: 12.64
A125: De Bilt0502 | B125: De Bilt | C125: 05 | D125: 02 | E125: 3.506666667 | F125: 11.81333333
A126: De Bilt0503 | B126: De Bilt | C126: 05 | D126: 03 | E126: 3.26 | F126: 11.74666667
A127: De Bilt0504 | B127: De Bilt | C127: 05 | D127: 04 | E127: 3.56 | F127: 11.6
A128: De Bilt0505 | B128: De Bilt | C128: 05 | D128: 05 | E128: 3.433333333 | F128: 12.08
A129: De Bilt0506 | B129: De Bilt | C129: 05 | D129: 06 | E129: 3.48 | F129: 13.18
A130: De Bilt0507 | B130: De Bilt | C130: 05 | D130: 07 | E130: 3.48 | F130: 13.48666667
A131: De Bilt0508 | B131: De Bilt | C131: 05 | D131: 08 | E131: 3.58 | F131: 13.84666667
A132: De Bilt0509 | B132: De Bilt | C132: 05 | D132: 09 | E132: 3.053333333 | F132: 14.38
A133: De Bilt0510 | B133: De Bilt | C133: 05 | D133: 10 | E133: 3.4 | F133: 14.48
A134: De Bilt0511 | B134: De Bilt | C134: 05 | D134: 11 | E134: 3.826666667 | F134: 13.42666667
A135: De Bilt0512 | B135: De Bilt | C135: 05 | D135: 12 | E135: 3.56 | F135: 12.8
A136: De Bilt0513 | B136: De Bilt | C136: 05 | D136: 13 | E136: 3.373333333 | F136: 13.52
A137: De Bilt0514 | B137: De Bilt | C137: 05 | D137: 14 | E137: 3.326666667 | F137: 12.76
A138: De Bilt0515 | B138: De Bilt | C138: 05 | D138: 15 | E138: 2.913333333 | F138: 12.94
A139: De Bilt0516 | B139: De Bilt | C139: 05 | D139: 16 | E139: 3 | F139: 12.82666667
A140: De Bilt0517 | B140: De Bilt | C140: 05 | D140: 17 | E140: 3.093333333 | F140: 12.50666667
A141: De Bilt0518 | B141: De Bilt | C141: 05 | D141: 18 | E141: 3.306666667 | F141: 12.92666667
A142: De Bilt0519 | B142: De Bilt | C142: 05 | D142: 19 | E142: 3.353333333 | F142: 13.08666667
A143: De Bilt0520 | B143: De Bilt | C143: 05 | D143: 20 | E143: 2.966666667 | F143: 13.78
A144: De Bilt0521 | B144: De Bilt | C144: 05 | D144: 21 | E144: 3.126666667 | F144: 14.35333333
A145: De Bilt0522 | B145: De Bilt | C145: 05 | D145: 22 | E145: 3.453333333 | F145: 14.27333333
A146: De Bilt0523 | B146: De Bilt | C146: 05 | D146: 23 | E146: 3.073333333 | F146: 14.4
A147: De Bilt0524 | B147: De Bilt | C147: 05 | D147: 24 | E147: 3.453333333 | F147: 14.56666667
A148: De Bilt0525 | B148: De Bilt | C148: 05 | D148: 25 | E148: 3.413333333 | F148: 14.58
A149: De Bilt0526 | B149: De Bilt | C149: 05 | D149: 26 | E149: 3.673333333 | F149: 14.12
A150: De Bilt0527 | B150: De Bilt | C150: 05 | D150: 27 | E150: 3.24 | F150: 14.58
A151: De Bilt0528 | B151: De Bilt | C151: 05 | D151: 28 | E151: 3.566666667 | F151: 14.8
A152: De Bilt0529 | B152: De Bilt | C152: 05 | D152: 29 | E152: 3.36 | F152: 13.83333333
A153: De Bilt0530 | B153: De Bilt | C153: 05 | D153: 30 | E153: 2.7 | F153: 14.24666667
A154: De Bilt0531 | B154: De Bilt | C154: 05 | D154: 31 | E154: 3 | F154: 14.08
A155: De Bilt0601 | B155: De Bilt | C155: 06 | D155: 01 | E155: 2.64 | F155: 14.54666667
A156: De Bilt0602 | B156: De Bilt | C156: 06 | D156: 02 | E156: 3.133333333 | F156: 15.48
A157: De Bilt0603 | B157: De Bilt | C157: 06 | D157: 03 | E157: 3.093333333 | F157: 15.32666667
A158: De Bilt0604 | B158: De Bilt | C158: 06 | D158: 04 | E158: 3.253333333 | F158: 15.40666667
A159: De Bilt0605 | B159: De Bilt | C159: 06 | D159: 05 | E159: 2.86 | F159: 14.84666667
A160: De Bilt0606 | B160: De Bilt | C160: 06 | D160: 06 | E160: 2.78 | F160: 15.51333333
A161: De Bilt0607 | B161: De Bilt | C161: 06 | D161: 07 | E161: 2.98 | F161: 15.91333333
A162: De Bilt0608 | B162: De Bilt | C162: 06 | D162: 08 | E162: 3.006666667 | F162: 16.59333333
A163: De Bilt0609 | B163: De Bilt | C163: 06 | D163: 09 | E163: 2.953333333 | F163: 16.58
A164: De Bilt0610 | B164: De Bilt | C164: 06 | D164: 10 | E164: 2.54 | F164: 16.1
A165: De Bilt0611 | B165: De Bilt | C165: 06 | D165: 11 | E165: 3.073333333 | F165: 15.54666667
A166: De Bilt0612 | B166: De Bilt | C166: 06 | D166: 12 | E166: 2.9 | F166: 15.23333333
A167: De Bilt0613 | B167: De Bilt | C167: 06 | D167: 13 | E167: 2.88 | F167: 15.49333333
A168: De Bilt0614 | B168: De Bilt | C168: 06 | D168: 14 | E168: 2.86 | F168: 15.98
A169: De Bilt0615 | B169: De Bilt | C169: 06 | D169: 15 | E169: 3.2 | F169: 15.70666667
A170: De Bilt0616 | B170: De Bilt | C170: 06 | D170: 16 | E170: 3.1 | F170: 15.32
A171: De Bilt0617 | B171: De Bilt | C171: 06 | D171: 17 | E171: 3.08 | F171: 16.83333333
A172: De Bilt0618 | B172: De Bilt | C172: 06 | D172: 18 | E172: 3.106666667 | F172: 17.36
A173: De Bilt0619 | B173: De Bilt | C173: 06 | D173: 19 | E173: 3.273333333 | F173: 17.18
A174: De Bilt0620 | B174: De Bilt | C174: 06 | D174: 20 | E174: 3.133333333 | F174: 17.13333333
A175: De Bilt0621 | B175: De Bilt | C175: 06 | D175: 21 | E175: 3.226666667 | F175: 16.21333333
A176: De Bilt0622 | B176: De Bilt | C176: 06 | D176: 22 | E176: 3.633333333 | F176: 16.24
A177: De Bilt0623 | B177: De Bilt | C177: 06 | D177: 23 | E177: 3.66 | F177: 16.48666667
A178: De Bilt0624 | B178: De Bilt | C178: 06 | D178: 24 | E178: 3.16 | F178: 16.52
A179: De Bilt0625 | B179: De Bilt | C179: 06 | D179: 25 | E179: 3.14 | F179: 16.08
A180: De Bilt0626 | B180: De Bilt | C180: 06 | D180: 26 | E180: 2.893333333 | F180: 16.74666667
A181: De Bilt0627 | B181: De Bilt | C181: 06 | D181: 27 | E181: 3.133333333 | F181: 17.42666667
A182: De Bilt0628 | B182: De Bilt | C182: 06 | D182: 28 | E182: 3.106666667 | F182: 17.61333333
A183: De Bilt0629 | B183: De Bilt | C183: 06 | D183: 29 | E183: 3.006666667 | F183: 17.03333333
A184: De Bilt0630 | B184: De Bilt | C184: 06 | D184: 30 | E184: 2.846666667 | F184: 17.40666667
A185: De Bilt0701 | B185: De Bilt | C185: 07 | D185: 01 | E185: 3.16 | F185: 17.32
A186: De Bilt0702 | B186: De Bilt | C186: 07 | D186: 02 | E186: 2.966666667 | F186: 18.29333333
A187: De Bilt0703 | B187: De Bilt | C187: 07 | D187: 03 | E187: 3.253333333 | F187: 18.32
A188: De Bilt0704 | B188: De Bilt | C188: 07 | D188: 04 | E188: 3.113333333 | F188: 18.38
A189: De Bilt0705 | B189: De Bilt | C189: 07 | D189: 05 | E189: 2.826666667 | F189: 18.48
A190: De Bilt0706 | B190: De Bilt | C190: 07 | D190: 06 | E190: 2.973333333 | F190: 17.89333333
A191: De Bilt0707 | B191: De Bilt | C191: 07 | D191: 07 | E191: 3.273333333 | F191: 17.32666667
A192: De Bilt0708 | B192: De Bilt | C192: 07 | D192: 08 | E192: 3 | F192: 17.02
A193: De Bilt0709 | B193: De Bilt | C193: 07 | D193: 09 | E193: 3.3 | F193: 17.22666667
A194: De Bilt0710 | B194: De Bilt | C194: 07 | D194: 10 | E194: 3.173333333 | F194: 17.72
A195: De Bilt0711 | B195: De Bilt | C195: 07 | D195: 11 | E195: 3.42 | F195: 17.13333333
A196: De Bilt0712 | B196: De Bilt | C196: 07 | D196: 12 | E196: 3.133333333 | F196: 16.66
A197: De Bilt0713 | B197: De Bilt | C197: 07 | D197: 13 | E197: 2.906666667 | F197: 17.16
A198: De Bilt0714 | B198: De Bilt | C198: 07 | D198: 14 | E198: 3.266666667 | F198: 17.60666667
A199: De Bilt0715 | B199: De Bilt | C199: 07 | D199: 15 | E199: 3.22 | F199: 18.4
A200: De Bilt0716 | B200: De Bilt | C200: 07 | D200: 16 | E200: 3 | F200: 18.70666667
... 3462 more rows

Sheet Subsidie
C6: besparing tussen 0,6 en 1,5 Nm3/j per euro? | G6: =IF(F12>=0.6,IF(F12<=1.5,"ja","nee"),"nee") -> ja
C7: prijs | D7: 80 | E7: €/m2 | F7: ---> | G7: =D7*Berekeningen!J10 -> 131687.7101
C8: warmtelek zonder dakisolatie | F8: 268.4086349 | G8: kW
C9: warmtelek met dakisolatie | F9: 120.1889885 | G9: kW
D10: besparing | F10: =F8-F9 -> 148.2196464 | G10: kW
D11: aardgaseq per jaar: | F11: =F10*24*365*3.6/31.65 -> 147685.7747 | G11: Nm3/j
F12: =F11/G7 -> 1.121484872
